bitfinex-derivatives/quotes_ETHF0:USTF0_20250224
["timestamp","ask_amount","ask_price","bid_price","bid_amount"]
[1740370197331,0.1278,2723.5,2723.4,0.73443]
[1740370197920,0.00550914,2723.7,2723.6,0.73438]
[1740370198530,0.73985914,2723.7,2723.6,1.44094566]
[1740370199230,0.00550914,2723.7,2723.6,2.17532566]
[1740370199426,0.73985914,2723.7,2723.6,1.44094566]
[1740370199619,3.65485914,2723.7,2723.6,1.44094566]
[1740370199825,0.73443,2723.4,2723.3,3.2078]
[1740370200332,4.3718,2723.6,2722.6,3.2078]
[1740370200630,3.2078,2723.3,2722.6,3.2078]
[1740370200819,2.915,2723.2,2722.6,3.2078]
[1740370201024,3.64949,2723.2,2722.9,0.73455]
[1740370201235,2.915,2723.2,2723.0,0.73452]
[1740370201430,2.915,2723.2,2722.6,3.2078]
[1740370201730,2.915,2723.2,2723.1,0.73451]
[1740370202231,0.73453,2723.1,2722.6,3.2078]
[1740370202434,0.73455,2723.0,2722.7,0.73461]
[1740370202732,2.915,2723.2,2722.7,0.73461]
[1740370203035,0.73452,2723.1,2722.4,1.279]
[1740370203424,0.73452,2723.1,2722.8,0.73458]
[1740370203728,2.915,2723.2,2722.4,1.279]
[1740370203925,3.2078,2722.8,2722.2,0.00550914]
[1740370204127,0.73473,2722.3,2722.2,0.00550914]
[1740370204537,3.94253,2722.3,2722.2,0.00550914]
[1740370207229,3.2078,2722.3,2721.7,3.2078]
[1740370207432,2.914,2722.2,2721.7,3.94268]
[1740370207631,0.73482,2722.0,2721.7,3.2078]
[1740370207833,2.914,2722.2,2721.7,3.2078]
[1740370207834,0.73486,2721.8,2721.7,3.2078]
[1740370208135,2.914,2722.2,2721.7,3.2078]
[1740370208442,2.914,2722.2,2721.7,3.21330914]
[1740370208631,2.91950914,2722.2,2721.7,3.21330914]
[1740370208829,0.73482,2722.0,2721.7,3.21330914]
[1740370209031,3.2078,2722.0,2721.7,0.00550914]
[1740370209227,0.73486,2721.8,2721.7,0.00550914]
[1740370209537,0.73486,2721.8,2721.2,1.2438]
[1740370209538,2.5509,2721.9,2720.5,3.2078]
[1740370209729,0.735,2721.3,2720.9,0.73509]
[1740370210034,2.914,2721.2,2720.6,0.73517]
[1740370210227,5.3635,2721.2,2720.5,3.943]
[1740370210431,0.73509,2721.0,2720.6,0.73518]
[1740370210629,0.73516,2720.7,2720.6,0.00550914]
[1740370210835,3.2078,2721.0,2720.6,0.74067914]
[1740370211242,3.2078,2721.0,2720.6,0.00550914]
[1740370211428,0.73512,2720.9,2720.6,0.00550914]
[1740370211630,2.914,2720.8,2720.6,0.00550914]
[1740370212035,3.2078,2721.0,2720.6,0.00550914]
[1740370212241,2.914,2720.7,2720.6,0.74067914]
[1740370214145,2.914,2721.5,2720.7,1.8379]
[1740370214335,23.5798,2722.0,2720.8,3.2078]
[1740370214336,3.2078,2721.7,2720.8,3.2078]
[1740370214543,0.73501,2721.3,2720.9,41.53509]
[1740370214742,3.2078,2721.7,2721.0,0.73506]
[1740370214743,0.73498,2721.4,2721.0,0.73506]
[1740370214937,0.73494,2721.5,2721.2,0.73501]
[1740370215139,3.2078,2721.7,2720.9,40.8]
[1740370215644,3.2078,2721.4,2720.8,3.2078]
[1740370215839,0.7351,2720.9,2720.8,3.2078]
[1740370216040,4.0982,2721.3,2720.8,3.2078]
[1740370216241,1.1727,2721.2,2720.8,3.94291]
[1740370216541,1.1727,2721.2,2720.8,3.2078]
[1740370216735,0.7351,2720.9,2720.8,3.2078]
[1740370216935,1.1727,2721.2,2720.8,3.2078]
[1740370217441,1.90772,2721.2,2720.8,3.94291]
[1740370217642,1.1727,2721.2,2720.8,3.2078]
[1740370217849,1.90775,2721.2,2720.7,0.73514]
[1740370218146,0.73506,2721.1,2720.7,0.73514]
[1740370218448,1.1727,2721.2,2720.8,0.73512]
[1740370218744,1.1727,2721.2,2720.6,0.00550914]
[1740370218946,0.73511,2720.9,2720.6,0.00550914]
[1740370219146,0.73509,2721.0,2720.6,0.74067914]
[1740370219347,0.73509,2721.0,2720.6,0.00550914]
[1740370219547,0.73509,2721.0,2720.7,0.73515]
[1740370219743,0.73512,2720.9,2720.6,0.00550914]
[1740370220344,3.2078,2721.1,2720.6,0.00550914]
[1740370220548,0.73516,2720.7,2720.6,0.00550914]
[1740370220742,6.1218,2720.8,2720.6,0.00550914]
[1740370221147,2.914,2720.8,2720.6,0.00550914]
[1740370221350,2.914,2720.8,2720.7,0.73516]
[1740370221650,2.914,2720.8,2720.6,0.74067914]
[1740370221950,2.914,2720.8,2720.7,0.73516]
[1740370222249,2.914,2720.8,2720.6,0.74066914]
[1740370222754,2.914,2720.8,2720.6,0.00550914]
[1740370222944,2.914,2720.8,2720.6,0.74067914]
[1740370225046,2.914,2720.8,2720.6,0.00550914]
[1740370225248,1.1727,2721.2,2720.6,0.00550914]
[1740370225451,4.0867,2721.2,2721.1,0.73505]
[1740370225952,1.1727,2721.2,2721.1,0.73505]
[1740370226253,2.914,2721.3,2721.2,0.73502]
[1740370226454,2.914,2721.4,2721.0,3.2078]
[1740370226650,2.914,2721.4,2720.7,0.0044788]
[1740370226856,0.73513,2720.8,2720.7,0.0044788]
[1740370227057,2.914,2720.8,2720.7,0.0044788]
[1740370227554,3.64913,2720.8,2720.7,0.0044788]
[1740370227755,2.914,2720.8,2720.7,0.0044788]
[1740370228256,3.64913,2720.8,2720.7,0.0044788]
[1740370228455,2.914,2720.8,2720.7,0.0044788]
[1740370229952,3.64913,2720.8,2720.7,0.0044788]
[1740370230352,2.914,2720.8,2720.7,0.0044788]
[1740370231249,6.1218,2721.5,2721.3,0.73498]
[1740370231455,6.1218,2721.5,2721.4,0.73497]
[1740370231850,2.914,2721.5,2721.4,0.73497]
[1740370232251,2.914,2721.5,2721.0,1.2844]
[1740370232455,0.73501,2721.3,2720.7,0.0044788]
[1740370232654,0.73504,2721.2,2720.8,0.73511]
[1740370232856,3.2078,2721.3,2720.7,0.0044788]
[1740370233056,2.914,2721.5,2720.7,3.2122788]
[1740370233353,2.914,2721.5,2721.4,0.73497]
[1740370234059,2.987,2723.4,2720.9,1.2372]
[1740370234060,0.00550914,2722.2,2721.2,3.2078]
[1740370234353,0.00550914,2722.2,2722.1,3.94258]
[1740370234554,1.3207,2722.8,2721.7,7.41]
[1740370234863,1.3282,2722.7,2722.0,0.73479]
[1740370235057,1.3282,2722.7,2722.0,3.2078]
[1740370235547,1.3282,2722.7,2722.2,0.73474]
[1740370235850,0.00550914,2722.6,2722.1,0.00550914]
[1740370236051,2.913,2722.5,2722.4,0.7347]
[1740370236252,2.913,2722.5,2722.1,1.26380914]
[1740370236453,2.913,2722.5,2722.2,0.73474]
[1740370236653,2.913,2722.5,2722.3,0.7347]
[1740370236856,2.913,2722.5,2722.4,0.7347]
[1740370237060,2.913,2722.5,2722.1,1.26380914]
[1740370237462,2.913,2722.5,2722.1,0.00550914]
[1740370237658,2.913,2722.5,2722.1,0.74027914]
[1740370237854,0.00550914,2722.6,2722.1,0.00550914]
[1740370238063,0.00550914,2722.6,2722.5,0.73467]
[1740370238265,0.00550914,2722.6,2722.3,3.2078]
[1740370238564,0.00550914,2722.6,2722.4,0.73468]
[1740370239163,2.91750914,2722.6,2722.3,3.2078]
[1740370239664,0.00550914,2722.6,2722.1,0.00550914]
[1740370239863,2.91750914,2722.6,2722.1,0.00550914]
[1740370240060,3.65215914,2722.6,2722.2,0.73473]
[1740370240366,2.91750914,2722.6,2722.3,0.73471]
[1740370240561,3.65216914,2722.6,2722.2,0.73475]
[1740370240961,0.00550914,2722.6,2722.5,0.73467]
[1740370242654,0.00550914,2722.6,2722.1,3.21330914]
[1740370242853,0.00550914,2722.6,2722.5,0.73467]
[1740370243769,0.74015914,2722.6,2722.1,3.21330914]
[1740370243962,0.74015914,2722.6,2722.2,0.73475]
[1740370244164,0.1274,2722.5,2722.1,3.21330914]
[1740370244669,0.7347,2722.4,2722.1,3.94806914]
[1740370244964,0.1274,2722.5,2722.2,0.73473]
[1740370245359,0.1274,2722.5,2722.1,3.21330914]
[1740370245562,0.1274,2722.5,2722.3,0.73472]
[1740370246962,0.1274,2722.5,2722.2,0.73473]
[1740370247167,0.86208,2722.5,2722.2,0.73473]
[1740370247369,0.86208,2722.5,2722.1,3.21330914]
[1740370247370,0.1274,2722.5,2722.3,0.73472]
[1740370247568,0.86209,2722.5,2722.1,3.21330914]
[1740370247871,0.1274,2722.5,2722.2,0.73475]
[1740370248167,0.1274,2722.5,2722.1,3.21330914]
[1740370248565,0.1274,2722.5,2722.3,0.73473]
[1740370248771,0.1274,2722.5,2722.1,3.21330914]
[1740370248961,2.91,2722.4,2722.3,0.73473]
[1740370249669,2.91,2722.4,2722.1,1.79044914]
[1740370249871,6.1178,2722.4,2721.7,1.2892]
[1740370250066,1.297,2722.3,2721.4,3.2078]
[1740370250265,2.91,2722.2,2721.4,3.2078]
[1740370250568,2.91,2722.2,2722.1,0.73478]
[1740370250969,0.1274,2722.5,2722.4,0.7347]
[1740370256275,0.00550914,2722.6,2722.5,0.73467]
[1740370256872,9.14e-06,2722.6,2722.5,0.73467]
[1740370257474,2.909,2723.3,2723.2,0.73448]
[1740370257781,2.909,2723.3,2723.1,0.73449]
[1740370257970,2.909,2723.3,2723.2,0.73448]
[1740370258370,2.909,2723.5,2723.2,0.73448]
[1740370258680,3.64892914,2723.5,2723.2,0.73448]
[1740370258875,2.91450914,2723.5,2723.2,0.73448]
[1740370259079,2.91450914,2723.5,2722.7,3.2078]
[1740370259286,0.73444,2723.4,2723.1,0.7345]
[1740370259472,0.7345,2723.2,2722.9,0.73455]
[1740370259773,3.94227,2723.3,2722.9,0.73455]
[1740370260174,3.2078,2723.3,2722.7,3.2078]
[1740370260375,3.2078,2723.0,2722.3,4.4661]
[1740370260573,6.1158,2723.0,2722.9,0.73456]
[1740370260773,6.1158,2723.0,2722.3,4.4661]
[1740370260983,6.1158,2723.0,2722.9,0.73456]
[1740370261882,6.1158,2723.0,2722.8,0.73457]
[1740370262386,6.1158,2723.0,2722.3,4.4661]
[1740370262576,6.1158,2723.0,2722.8,0.73458]
[1740370263875,6.1158,2723.0,2722.7,0.7346]
[1740370264777,6.1158,2723.0,2722.3,4.4661]
[1740370264977,6.1158,2723.0,2722.8,0.73457]
[1740370265785,6.1158,2723.0,2722.3,4.4661]
[1740370265986,6.1158,2723.0,2722.8,0.73459]
[1740370267182,6.1158,2723.0,2722.3,4.4661]
[1740370267582,43.63,2722.9,2722.8,0.73459]
[1740370267788,43.63,2722.9,2722.3,4.4661]
[1740370267983,43.63,2722.9,2722.3,1.2583]
[1740370268191,44.8628,2722.9,2722.3,1.2583]
[1740370268384,44.8628,2722.9,2722.4,0.73469]
[1740370268584,45.59739,2722.9,2722.5,0.73465]
[1740370268889,3.2078,2722.7,2722.2,0.73475]
[1740370269089,3.2078,2722.4,2721.9,0.00550914]
[1740370269286,3.2078,2722.0,2721.9,0.00550914]
[1740370269486,2.907,2722.0,2721.9,0.00550914]
[1740370270087,6.84961,2722.0,2721.9,0.00550914]
[1740370272595,3.2078,2722.0,2721.9,0.74033914]
[1740370272891,1.2424,2722.2,2722.1,0.73478]
[1740370273088,4.1484,2722.2,2721.9,0.74032914]
[1740370273286,4.1484,2722.2,2721.9,0.00550914]
[1740370273490,2.906,2722.2,2722.1,0.73478]
[1740370276995,2.906,2722.2,2721.9,0.00550914]
[1740370277198,2.906,2722.2,2722.0,0.7348]
[1740370277402,2.906,2722.2,2721.9,0.00550914]
[1740370277701,2.906,2722.2,2722.1,0.73478]
[1740370277902,2.906,2722.2,2722.0,0.7348]
[1740370278097,2.906,2722.2,2721.9,0.00550914]
[1740370278302,2.906,2722.2,2722.0,0.73479]
[1740370278705,2.906,2722.2,2722.1,0.73478]
[1740370279508,3.2078,2722.3,2721.9,0.00550914]
[1740370279708,3.2078,2722.3,2722.2,0.73475]
[1740370279912,1.2959,2722.6,2722.5,0.73467]
[1740370280706,1.2959,2722.6,2722.1,1.2884]
[1740370280707,43.63,2722.9,2722.8,0.73459]
[1740370280910,46.535,2722.9,2722.8,0.73459]
[1740370281107,50.47739,2722.9,2722.1,4.4962]
[1740370281308,49.7428,2722.9,2722.1,3.2078]
[1740370281504,3.2078,2722.6,2722.1,3.2078]
[1740370281705,3.2078,2722.6,2722.5,0.73467]
[1740370282008,1.2307,2722.7,2722.1,3.2078]
[1740370282209,2.05787,2722.5,2722.1,3.2078]
[1740370282504,0.73475,2722.2,2722.0,10.0]
[1740370282710,1.3443,2722.1,2722.0,10.0]
[1740370282907,2.07908,2722.1,2722.0,10.0]
[1740370283105,1.3443,2722.1,2722.0,10.0]
[1740370283309,4.2493,2722.1,2722.0,10.73481]
[1740370283607,4.2493,2722.1,2722.0,10.0]
[1740370283811,4.98408,2722.1,2722.0,10.0]
[1740370284003,4.2493,2722.1,2722.0,10.0]
[1740370284209,4.98408,2722.1,2722.0,10.0]
[1740370285012,4.2493,2722.1,2722.0,10.0]
[1740370285207,4.98408,2722.1,2722.0,10.0]
[1740370285517,4.2493,2722.1,2722.0,10.0]
[1740370286309,1.3232,2722.5,2722.0,10.0]
[1740370286613,1.3232,2722.5,2722.4,0.7347]
[1740370287213,2.905,2722.7,2722.0,2.6659]
[1740370287407,6.1128,2722.7,2722.0,2.6659]
[1740370287812,6.1128,2722.7,2722.6,0.73465]
[1740370288416,3.2078,2722.7,2722.6,0.73465]
[1740370288612,43.63,2722.9,2722.5,3.2078]
[1740370288920,46.534,2722.9,2722.8,0.73459]
[1740370289518,43.63,2722.9,2722.8,0.73459]
[1740370290217,43.63,2722.9,2722.8,1.2859965]
[1740370291723,43.63,2722.9,2722.8,4.4937965]
[1740370292218,43.63,2722.9,2722.8,1.28588257]
[1740370293524,43.63,2722.9,2722.8,1.27638922]
[1740370294125,43.63,2722.9,2722.8,1.27640424]
[1740370294615,43.63,2722.9,2722.8,1.27636886]
[1740370296121,43.63,2722.9,2722.8,1.27631231]
[1740370297326,43.63,2722.9,2722.8,0.54172231]
[1740370297526,44.36456,2722.9,2722.8,0.54172231]
[1740370297727,43.63,2722.9,2722.8,1.27631231]
[1740370300322,43.63,2722.9,2722.8,1.27618168]
[1740370302429,43.63,2722.9,2722.8,1.27645405]
[1740370302930,43.63,2722.9,2722.8,1.2764479]
[1740370303341,42.74576258,2722.9,2722.8,10.4842479]
[1740370303629,30.27193462,2722.9,2722.8,10.4842479]
[1740370303831,28.79424462,2722.9,2722.8,10.4842479]
[1740370304023,27.44313462,2722.9,2722.8,51.2842479]
[1740370304225,19.12344462,2722.9,2722.8,51.2842479]
[1740370304527,5.17472845,2722.9,2722.8,51.28382534]
[1740370304833,3.85416845,2722.9,2722.8,51.28382534]
[1740370305231,1.14121845,2722.9,2722.8,51.28382534]
[1740370305431,8.45e-06,2722.9,2722.8,51.28382534]
[1740370306332,7.59e-06,2723.5,2723.4,0.73443]
[1740370306534,7.59e-06,2723.5,2723.4,4.48322364]
[1740370306731,7.59e-06,2723.5,2723.4,10.48322364]
[1740370308234,7.59e-06,2723.5,2723.4,4.48322364]
[1740370309733,7.59e-06,2723.5,2723.4,10.48322364]
[1740370310426,7.59e-06,2723.5,2723.4,9.94223]
[1740370310828,7.59e-06,2723.5,2723.4,3.94223]
[1740370312334,1.293,2724.2,2724.1,0.73424]
[1740370312536,1.293,2724.2,2723.9,3.2078]
[1740370312736,1.293,2724.2,2724.0,0.73425]
[1740370312937,2.02723,2724.2,2723.9,3.94208]
[1740370313132,2.02723,2724.2,2723.9,3.2078]
[1740370313436,2.02723,2724.2,2723.9,3.94207]
[1740370314437,1.293,2724.2,2723.9,3.2078]
[1740370314637,0.7343,2723.9,2723.8,0.00550914]
[1740370314831,0.7343,2723.9,2723.5,0.73439]
[1740370315032,0.73433,2723.8,2723.5,0.73439]
[1740370315239,0.73433,2723.8,2723.5,0.7344]
[1740370315431,3.2078,2723.9,2722.8,2.898]
[1740370315633,0.73438,2723.6,2723.3,0.73444]
[1740370315938,1.3134,2723.5,2723.2,0.00550914]
[1740370316132,2.04782,2723.5,2723.2,0.00550914]
[1740370316439,0.73446,2723.3,2723.2,0.00550914]
[1740370316627,2.04782,2723.5,2723.2,0.73997914]
[1740370316829,2.04782,2723.5,2723.2,0.00550914]
[1740370317032,1.3134,2723.5,2723.2,0.00550914]
[1740370317537,1.3134,2723.5,2723.2,0.73997914]
[1740370317741,0.73446,2723.3,2723.2,0.00550914]
[1740370317941,1.97445,2723.4,2723.2,0.00550914]
[1740370318142,1.24,2723.4,2723.2,0.73996914]
[1740370318442,1.24,2723.4,2723.3,0.73446]
[1740370318642,9.0928,2724.0,2723.9,0.7343]
[1740370318643,2.987,2724.0,2723.9,0.7343]
[1740370318936,2.5565,2724.2,2724.0,0.73427]
[1740370319741,3.29073,2724.2,2723.9,0.73429]
[1740370319936,2.5565,2724.2,2724.0,0.73425]
[1740370320542,2.5565,2724.2,2724.1,0.73424]
[1740370320739,3.29072,2724.2,2723.9,0.73427]
[1740370321039,2.5565,2724.2,2723.6,3.2078]
[1740370322741,2.5565,2724.2,2724.0,0.73426]
[1740370322934,2.5565,2724.2,2723.6,3.2078]
[1740370323139,3.29073,2724.2,2723.9,0.73428]
[1740370323334,2.5565,2724.2,2723.6,3.2078]
[1740370323644,3.29072,2724.2,2724.0,0.73427]
[1740370323837,3.29072,2724.2,2723.9,0.73428]
[1740370324143,3.2078,2724.0,2723.3,2.954]
[1740370324347,0.73441,2723.5,2723.2,0.73997914]
[1740370324536,2.6112,2723.4,2723.2,0.73997914]
[1740370324739,2.6112,2723.4,2723.2,0.00550914]
[1740370324940,3.2078,2723.3,2723.2,0.00550914]
[1740370325147,3.2078,2723.3,2722.8,3.2078]
[1740370325148,0.73452,2723.1,2722.8,3.2078]
[1740370325344,1.2226,2723.2,2722.5,3.2078]
[1740370325640,1.2226,2723.2,2722.7,0.7346]
[1740370325855,0.73451,2723.1,2722.5,3.2078]
[1740370326043,3.2078,2723.0,2722.2,3.2078]
[1740370326243,0.73459,2722.9,2722.4,0.73469]
[1740370326544,0.73461,2722.8,2722.3,0.74022914]
[1740370326745,2.08181,2722.8,2722.4,0.7347]
[1740370327047,1.3472,2722.8,2722.3,0.00550914]
[1740370327236,0.73467,2722.6,2722.3,0.00550914]
[1740370327441,0.73469,2722.5,2722.3,0.00550914]
[1740370327739,6.1038,2722.4,2721.5,11.38124996]
[1740370327943,6.1038,2722.4,2721.5,3.2078]
[1740370327944,2.896,2722.3,2721.5,3.2078]
[1740370328140,2.896,2722.3,2721.5,3.47811039]
[1740370328340,1.3431,2722.2,2721.5,3.47811039]
[1740370328747,1.3431,2722.2,2721.9,0.73482]
[1740370329540,1.3431,2722.2,2721.6,0.00550914]
[1740370330046,1.3431,2722.2,2721.9,0.73482]
[1740370330639,1.3431,2722.2,2721.8,0.73485]
[1740370330841,1.2166,2722.1,2721.8,0.73485]
[1740370331245,1.2166,2722.1,2722.0,0.73481]
[1740370331441,1.2166,2722.1,2721.9,0.73482]
[1740370331747,1.9514,2722.1,2721.7,40.8]
[1740370331949,1.2166,2722.1,2721.7,40.8]
[1740370332149,1.95138,2722.1,2721.7,41.53487]
[1740370332443,1.2166,2722.1,2721.8,0.73486]
[1740370332644,1.2166,2722.1,2721.7,40.8]
[1740370333046,1.95138,2722.1,2721.7,41.53487]
[1740370333247,1.2166,2722.1,2721.8,0.73486]
[1740370333441,1.2166,2722.1,2721.7,40.8]
[1740370333947,1.2166,2722.1,2721.8,0.73486]
[1740370334249,1.2166,2722.1,2721.8,0.73485]
[1740370334848,1.2166,2722.1,2721.9,0.73482]
[1740370336546,1.2166,2722.1,2722.0,0.73481]
[1740370336750,1.2166,2722.1,2721.7,40.8]
[1740370337547,1.2166,2722.1,2722.0,0.73481]
[1740370337947,1.2166,2722.1,2721.7,40.8]
[1740370338144,1.2166,2722.1,2721.9,0.73482]
[1740370338553,1.2166,2722.1,2721.7,40.8]
[1740370338749,1.2166,2722.1,2721.8,0.73484]
[1740370339155,1.2166,2722.1,2721.7,40.8]
[1740370339457,1.2166,2722.1,2722.0,0.73481]
[1740370340051,1.3431,2722.2,2722.0,0.73481]
[1740370340353,2.895,2722.6,2722.5,0.73467]
[1740370340556,2.895,2722.7,2722.2,3.2078]
[1740370340751,2.895,2722.7,2722.5,0.73465]
[1740370341353,2.895,2722.7,2722.1,3.2078]
[1740370341354,2.5335,2722.8,2722.7,0.73462]
[1740370341555,0.73466,2722.6,2722.3,0.73471]
[1740370341754,5.7413,2722.8,2722.1,3.2078]
[1740370342359,5.7413,2722.8,2722.5,0.73465]
[1740370342857,9.3699,2722.8,2722.5,0.73465]
[1740370343458,9.3699,2722.8,2722.1,3.2078]
[1740370343650,8.6353,2722.8,2721.8,3.2078]
[1740370343855,8.6353,2722.8,2722.1,3.2078]
[1740370344154,8.6353,2722.8,2722.5,0.73466]
[1740370344357,8.6353,2722.8,2722.5,0.73465]
[1740370344553,8.6353,2722.8,2722.4,0.73469]
[1740370344748,0.73463,2722.7,2722.4,0.73469]
[1740370344953,9.36991,2722.8,2722.5,0.73466]
[1740370345355,8.6353,2722.8,2722.3,0.73471]
[1740370345663,9.36991,2722.8,2722.5,0.73466]
[1740370345854,9.36991,2722.8,2722.4,0.73468]
[1740370346250,8.6353,2722.8,2722.4,0.73468]
[1740370346461,0.73465,2722.6,2722.3,0.73472]
[1740370346762,0.73463,2722.7,2722.4,0.73469]
[1740370346958,0.73463,2722.7,2722.1,3.2078]
[1740370346959,8.6353,2722.8,2722.1,3.2078]
[1740370347155,3.2078,2722.5,2721.6,3.22550914]
[1740370347356,3.2078,2722.5,2721.6,3.21330914]
[1740370347961,3.94249,2722.5,2722.2,0.73475]
[1740370348256,3.94249,2722.5,2721.6,3.21330914]
[1740370348257,3.2078,2722.5,2721.6,3.21330914]
[1740370348560,0.73471,2722.4,2722.1,0.73477]
[1740370348759,0.73471,2722.4,2722.1,0.73476]
[1740370348760,0.7347,2722.4,2722.1,0.73476]
[1740370348964,0.73475,2722.3,2721.6,3.21330914]
[1740370349163,2.00625,2722.3,2722.0,0.7348]
[1740370349462,1.2341,2722.2,2721.6,3.21330914]
[1740370349664,1.3112,2722.1,2722.0,0.73481]
[1740370349866,1.3112,2722.1,2721.6,3.21330914]
[1740370350155,1.3112,2722.1,2722.0,0.73481]
[1740370350362,1.3112,2722.1,2721.6,3.21330914]
[1740370350563,1.3112,2722.1,2722.0,0.73481]
[1740370351471,1.3112,2722.1,2721.9,0.73482]
[1740370351653,1.3112,2722.1,2721.6,3.21330914]
[1740370351962,0.73481,2722.0,2721.7,0.73488]
[1740370352163,2.04599,2722.1,2721.8,0.73485]
[1740370352664,1.3112,2722.1,2721.6,3.21330914]
[1740370353169,1.3112,2722.1,2721.9,0.73483]
[1740370353766,2.04599,2722.1,2721.6,3.21330914]
[1740370354063,1.3112,2722.1,2721.6,3.21330914]
[1740370354367,1.3112,2722.1,2721.9,0.73482]
[1740370354563,2.04598,2722.1,2721.8,0.73484]
[1740370355066,1.3112,2722.1,2721.9,0.73483]
[1740370355260,1.3112,2722.1,2721.6,3.21330914]
[1740370355767,0.73482,2722.0,2721.7,0.73487]
[1740370356570,1.3112,2722.1,2721.6,3.21330914]
[1740370357163,2.891,2722.4,2721.9,3.2078]
[1740370357368,2.891,2722.4,2722.3,0.73471]
[1740370357563,7.61369,2722.8,2722.5,0.73465]
[1740370357767,2.891,2722.7,2722.5,0.73465]
[1740370357967,2.891,2722.7,2722.0,42.63703]
[1740370358168,2.891,2722.7,2722.6,0.73465]
[1740370358572,0.73465,2722.6,2722.2,0.73473]
[1740370358872,2.891,2722.7,2722.4,0.7347]
[1740370358873,3.62564,2722.7,2722.4,0.7347]
[1740370359072,3.2078,2722.6,2722.5,1.45198193]
[1740370359372,3.2078,2722.6,2721.8,44.0078]
[1740370359572,0.73475,2722.2,2721.9,0.73483]
[1740370359872,0.73473,2722.3,2722.0,0.73478]
[1740370360075,1.2019,2722.2,2721.9,0.73482]
[1740370360376,1.93666,2722.2,2721.9,0.73482]
[1740370360574,1.2019,2722.2,2722.0,0.73479]
[1740370360775,1.2019,2722.2,2721.9,0.73481]
[1740370360974,1.93665,2722.2,2721.9,0.73481]
[1740370361173,1.2019,2722.2,2721.9,0.73481]
[1740370361371,1.2019,2722.2,2721.7,2.954]
[1740370361571,1.93667,2722.2,2721.9,0.73482]
[1740370361874,1.2019,2722.2,2721.6,0.00550914]
[1740370362178,1.2019,2722.2,2722.1,0.73478]
[1740370363679,4.4334,2722.3,2722.2,0.73475]
[1740370363974,1.2256,2722.3,2722.2,0.73475]
[1740370365174,1.294,2722.6,2722.5,0.73467]
[1740370365382,2.4308,2722.8,2722.7,0.73462]
[1740370365866,1.2316,2722.8,2722.7,0.73462]
[1740370366275,0.00550914,2722.9,2722.8,0.73459]
[1740370366471,2.4749,2723.5,2722.6,3.2078]
[1740370366676,1.2013,2723.9,2723.8,0.73432]
[1740370366869,1.2013,2723.9,2723.3,1.83612]
[1740370366870,2.889,2724.0,2723.9,0.7343]
[1740370367375,2.889,2724.0,2723.6,3.2078]
[1740370367579,2.889,2724.0,2723.8,0.7343]
[1740370367980,6.0968,2724.0,2723.7,0.73432]
[1740370368175,6.0968,2724.0,2723.8,0.73432]
[1740370368473,6.0968,2724.0,2723.6,0.73436]
[1740370368673,0.7343,2723.9,2723.6,0.73436]
[1740370369081,6.83108,2724.0,2723.6,0.73436]
[1740370369480,6.83108,2724.0,2723.7,0.88767434]
[1740370369781,6.83108,2724.0,2723.6,0.73436]
[1740370369977,6.0968,2724.0,2723.8,0.7343]
[1740370370280,0.00550914,2724.1,2724.0,0.73427]
[1740370370474,0.00550914,2724.1,2724.0,1.621088]
[1740370370877,0.00550914,2724.1,2724.0,0.886818]
[1740370371078,0.00550914,2724.1,2723.5,0.00550914]
[1740370371385,0.73428,2724.0,2723.6,2.17527173]
[1740370371577,0.73428,2724.0,2723.7,1.44090173]
[1740370371770,0.00550914,2724.1,2723.8,0.55404221]
[1740370371975,0.00550914,2724.1,2723.5,0.00550914]
[1740370372277,0.73432,2723.8,2723.5,0.00550914]
[1740370372474,1.3038,2723.7,2723.5,0.00550914]
[1740370372875,1.3025,2723.6,2723.5,0.00550914]
[1740370373069,1.3025,2723.6,2723.5,0.73990914]
[1740370373275,1.3025,2723.6,2723.5,0.00550914]
[1740370373475,2.03688,2723.6,2723.5,0.00550914]
[1740370373870,4.5103,2723.6,2723.0,0.73453]
[1740370374082,4.5103,2723.6,2723.1,0.55373671]
[1740370374285,0.73449,2723.2,2722.8,0.73457]
[1740370374480,0.73449,2723.2,2722.9,1.28828103]
[1740370374678,0.73447,2723.3,2723.0,0.55372066]
[1740370374984,0.73447,2723.3,2722.9,0.74006914]
[1740370375182,0.73447,2723.3,2723.0,0.55371495]
[1740370375381,4.5103,2723.6,2723.1,0.55365892]
[1740370375681,4.5103,2723.6,2722.9,0.00550914]
[1740370375878,0.73447,2723.3,2723.0,0.55367178]
[1740370376078,0.73447,2723.3,2722.9,0.74005914]
[1740370376279,6.0938,2723.3,2722.9,0.00550914]
[1740370376473,0.73454,2723.0,2722.9,0.00550914]
[1740370377479,3.94234,2723.0,2722.9,0.00550914]
[1740370377681,0.73466,2722.6,2722.2,0.73474]
[1740370377883,6.0938,2722.7,2722.3,0.55375121]
[1740370378081,0.73468,2722.5,2722.1,0.73477]
[1740370378483,2.886,2722.6,2722.2,0.55378134]
[1740370378691,0.00550914,2722.5,2721.9,3.21330914]
[1740370378877,0.00550914,2722.5,2722.4,0.7347]
[1740370380292,0.00550914,2722.5,2722.4,1.27913212]
[1740370380481,0.00550914,2722.5,2722.4,0.7347]
[1740370380879,0.00550914,2722.5,2722.4,1.27914297]
[1740370381275,6.0938,2723.3,2723.2,0.73448]
[1740370381480,2.885,2723.3,2723.2,0.73448]
[1740370382587,2.885,2723.3,2723.0,0.74002914]
[1740370382889,2.885,2723.3,2723.1,0.73451]
[1740370384187,2.885,2723.3,2723.0,0.00550914]
[1740370384392,0.73992914,2723.5,2723.0,0.00550914]